bitfinex-derivatives/quotes_BTCF0:USTF0_20220102
["timestamp","ask_amount","ask_price","bid_price","bid_amount"]
[1641090283387,0.27691684,47408.0,47407.0,0.83068018]
[1641090284590,0.08991684,47408.0,47407.0,0.83068018]
[1641090285394,0.27691684,47408.0,47407.0,0.83068018]
[1641090286596,0.08991684,47408.0,47407.0,0.83068018]
[1641090287397,0.27591684,47408.0,47407.0,0.83068018]
[1641090287597,0.186,47408.0,47407.0,0.83068018]
[1641090287799,0.186,47408.0,47399.0,1.22099714]
[1641090288300,0.54514708,47408.0,47400.0,0.96595107]
[1641090288498,0.54514708,47408.0,47400.0,2.02072507]
[1641090288699,0.35914708,47408.0,47400.0,2.02072507]
[1641090289299,0.54514708,47408.0,47400.0,1.65150384]
[1641090290605,0.35914708,47408.0,47400.0,1.65150384]
[1641090290807,0.14033567,47409.0,47400.0,1.054774]
[1641090291005,0.53914708,47410.0,47400.0,1.054774]
[1641090291204,0.186,47408.0,47400.0,1.054774]
[1641090291805,0.14033567,47406.0,47400.0,1.054774]
[1641090293206,0.32633567,47406.0,47400.0,1.054774]
[1641090293705,0.186,47406.0,47400.0,1.054774]
[1641090294304,0.32633567,47406.0,47400.0,1.054774]
[1641090294704,0.14033567,47406.0,47400.0,1.054774]
[1641090295306,0.32633567,47406.0,47400.0,1.054774]
[1641090296705,0.14033567,47406.0,47400.0,1.054774]
[1641090297307,0.32633567,47406.0,47400.0,1.054774]
[1641090298711,0.14033567,47406.0,47400.0,1.054774]
[1641090299409,0.32633567,47406.0,47400.0,1.054774]
[1641090300811,0.32633567,47406.0,47398.0,1.054785]
[1641090301212,0.32633567,47406.0,47401.0,1.054785]
[1641090301414,0.32633567,47406.0,47398.0,1.054807]
[1641090301612,0.32633567,47406.0,47402.0,1.054774]
[1641090301913,0.32633567,47406.0,47398.0,1.054807]
[1641090302113,0.32633567,47406.0,47403.0,1.054763]
[1641090302515,0.32633567,47406.0,47398.0,1.054807]
[1641090302713,0.14033567,47406.0,47398.0,1.054807]
[1641090303331,0.32633567,47406.0,47398.0,1.054807]
[1641090304715,0.14033567,47406.0,47398.0,1.054807]
[1641090304915,0.18,47401.0,47398.0,1.054807]
[1641090305122,0.27231,47401.0,47396.0,0.59672984]
[1641090305740,0.27231,47401.0,47395.0,0.14033567]
[1641090306518,0.27231,47401.0,47394.0,0.59672984]
[1641090306715,0.14033567,47396.0,47394.0,0.59672984]
[1641090306916,0.14033567,47396.0,47391.0,0.8]
[1641090307317,0.32733567,47396.0,47391.0,0.8]
[1641090307516,0.32733567,47396.0,47392.0,1.054996]
[1641090308317,0.18,47393.0,47387.0,0.59672984]
[1641090308718,0.14033567,47388.0,47387.0,0.59672984]
[1641090309317,0.32733567,47388.0,47387.0,0.59672984]
[1641090309517,0.32733567,47388.0,47383.0,0.59672984]
[1641090310116,0.32733567,47388.0,47384.0,1.055175]
[1641090310718,0.46767134,47388.0,47384.0,1.055175]
[1641090311221,0.28067134,47388.0,47384.0,1.055175]
[1641090311422,0.46867134,47388.0,47384.0,1.055175]
[1641090312420,0.18,47387.0,47381.0,0.59672984]
[1641090313420,0.18,47387.0,47378.0,1.18444822]
[1641090313421,0.368,47387.0,47378.0,0.59672984]
[1641090314223,0.368,47387.0,47375.0,0.59672984]
[1641090314722,0.18,47387.0,47375.0,0.59672984]
[1641090314923,0.18,47387.0,47376.0,1.06726746]
[1641090315120,0.28067134,47388.0,47376.0,1.6639973]
[1641090315321,0.186,47387.0,47377.0,0.01199246]
[1641090315722,0.186,47387.0,47378.0,1.055241]
[1641090316526,0.186,47387.0,47376.0,0.59672984]
[1641090316527,0.186,47387.0,47377.0,1.055241]
[1641090316727,0.28067134,47388.0,47379.0,1.055241]
[1641090316928,0.28067134,47388.0,47376.0,0.59672984]
[1641090317127,0.28067134,47388.0,47377.0,1.055253]
[1641090317328,0.46667134,47388.0,47377.0,1.055253]
[1641090318832,0.18,47387.0,47377.0,1.055253]
[1641090319332,0.187,47387.0,47377.0,1.055253]
[1641090320744,0.28067134,47388.0,47378.0,0.01199203]
[1641090321442,0.46667134,47388.0,47377.0,0.59672984]
[1641090321943,0.46667134,47388.0,47378.0,1.055241]
[1641090322142,0.64667134,47388.0,47378.0,1.055241]
[1641090322843,0.28067134,47388.0,47378.0,1.055241]
[1641090323444,0.46767134,47388.0,47378.0,1.055241]
[1641090324351,0.64767134,47388.0,47378.0,1.055241]
[1641090324949,0.64767134,47388.0,47375.0,0.59672984]
[1641090325248,0.46067134,47388.0,47375.0,0.59672984]
[1641090325548,0.64767134,47388.0,47376.0,1.06725662]
[1641090326048,0.42207177,47386.0,47376.0,1.055264]
[1641090326448,0.46767134,47388.0,47376.0,1.055264]
[1641090326749,0.28067134,47388.0,47376.0,1.055264]
[1641090327148,0.46067134,47388.0,47376.0,1.055264]
[1641090327448,0.64667134,47388.0,47376.0,1.055264]
[1641090327849,0.46667134,47388.0,47376.0,1.055264]
[1641090328048,0.18,47386.0,47376.0,1.055264]
[1641090329351,0.368,47386.0,47376.0,1.055264]
[1641090329952,0.02111107,47382.0,47375.0,0.59672984]
[1641090330155,0.10116107,47382.0,47375.0,0.59672984]
[1641090330954,0.14033567,47376.0,47375.0,0.59672984]
[1641090331154,0.14033567,47376.0,47374.0,0.02]
[1641090333356,0.35044923,47376.0,47374.0,0.02]
[1641090334859,0.16144923,47376.0,47374.0,0.02]
[1641090335459,0.34944923,47376.0,47374.0,0.02]
[1641090336660,0.16144923,47376.0,47374.0,0.02]
[1641090337360,0.34944923,47376.0,47374.0,0.02]
[1641090338663,0.16144923,47376.0,47374.0,0.02]
[1641090339362,0.34944923,47376.0,47374.0,0.02]
[1641090340665,0.16144923,47376.0,47374.0,0.02]
[1641090341466,0.34944923,47376.0,47374.0,0.02]
[1641090342668,0.16144923,47376.0,47374.0,0.02]
[1641090343467,0.34944923,47376.0,47374.0,0.02]
[1641090344671,0.16144923,47376.0,47374.0,0.02]
[1641090345476,0.34944923,47376.0,47374.0,0.02]
[1641090346776,0.16144923,47376.0,47374.0,0.02]
[1641090347480,0.34944923,47376.0,47374.0,0.02]
[1641090348778,0.16144923,47376.0,47374.0,0.02]
[1641090348978,0.18,47375.0,47374.0,0.02]
[1641090349482,1.72828751,47375.0,47364.0,1.3081395]
[1641090349682,0.20112266,47365.0,47343.0,1.67458311]
[1641090349983,0.18,47355.0,47344.0,0.15077621]
[1641090350180,0.25246,47355.0,47344.0,0.15077621]
[1641090350380,0.07246,47355.0,47343.0,1.67458311]
[1641090350782,0.07246,47355.0,47347.0,0.009794]
[1641090350982,0.07246,47355.0,47347.0,0.189794]
[1641090351180,0.14033567,47352.0,47347.0,0.189794]
[1641090351380,0.14033567,47352.0,47347.0,0.009794]
[1641090351581,0.14033567,47352.0,47348.0,0.01199943]
[1641090351782,0.14033567,47352.0,47347.0,0.009794]
[1641090353386,0.32933567,47352.0,47347.0,0.009794]
[1641090354899,0.14033567,47352.0,47347.0,0.009794]
[1641090355499,0.33033567,47352.0,47347.0,0.009794]
[1641090356200,0.33033567,47352.0,47342.0,0.82112088]
[1641090356399,0.33033567,47352.0,47345.0,0.18]
[1641090356801,0.14033567,47352.0,47345.0,0.18]
[1641090357402,0.32833567,47352.0,47345.0,0.18]
[1641090358304,0.188,47352.0,47345.0,0.18]
[1641090358703,2.36876634,47358.0,47346.0,0.01199903]
[1641090359205,0.14033567,47352.0,47345.0,0.18]
[1641090359606,0.14033567,47352.0,47346.0,0.01199898]
[1641090360604,0.14033567,47352.0,47344.0,0.18]
[1641090361404,0.32733567,47352.0,47343.0,0.009794]
[1641090361805,0.32733567,47352.0,47344.0,0.18]
[1641090362205,0.32733567,47352.0,47344.0,0.19199922]
[1641090362605,0.32733567,47352.0,47344.0,0.18]
[1641090362814,0.32733567,47352.0,47343.0,0.189794]
[1641090363006,0.14033567,47352.0,47348.0,0.18]
[1641090363412,0.32833567,47352.0,47344.0,0.01199889]
[1641090363606,0.32833567,47352.0,47343.0,0.009794]
[1641090364608,0.32833567,47352.0,47343.0,0.189794]
[1641090364807,0.14033567,47352.0,47343.0,0.189794]
[1641090365510,0.32733567,47352.0,47343.0,0.189794]
[1641090366708,0.14033567,47352.0,47343.0,0.189794]
[1641090367511,0.32733567,47352.0,47343.0,0.189794]
[1641090368815,0.14033567,47352.0,47343.0,0.189794]
[1641090369415,0.32833567,47352.0,47343.0,0.189794]
[1641090370013,0.32833567,47352.0,47343.0,0.009794]
[1641090370817,0.14033567,47352.0,47343.0,0.189794]
[1641090371515,0.32833567,47352.0,47343.0,0.189794]
[1641090371716,0.32833567,47352.0,47346.0,0.18]
[1641090372519,0.188,47352.0,47351.0,0.18]
[1641090372717,0.14033567,47361.0,47351.0,0.21091084]
[1641090372916,0.14033567,47361.0,47356.0,0.18]
[1641090373116,0.14033567,47361.0,47356.0,0.24577]
[1641090373517,0.039,47361.0,47356.0,0.43377]
[1641090373819,0.14033567,47371.0,47360.0,0.20211254]
[1641090374018,0.14033567,47371.0,47365.0,0.0211108]
[1641090374227,0.14033567,47371.0,47361.0,0.33850328]
[1641090374419,0.14033567,47371.0,47358.0,0.8]
[1641090374821,0.14033567,47371.0,47358.0,0.98]
[1641090375119,0.1614515,47371.0,47358.0,0.8]
[1641090375320,0.1614515,47371.0,47355.0,0.14033567]
[1641090375321,0.18,47365.0,47355.0,0.14033567]
[1641090375521,0.14033567,47358.0,47347.0,0.8]
[1641090375721,0.21137567,47358.0,47347.0,0.8]
[1641090376122,0.21137567,47358.0,47348.0,1.05591]
[1641090376521,0.09085316,47357.0,47355.0,0.83697613]
[1641090376723,1.3916005,47357.0,47356.0,0.59780773]
[1641090377524,1.3916005,47357.0,47356.0,0.76980773]
[1641090378626,1.3916005,47357.0,47356.0,0.85981748]
[1641090378824,1.3916005,47357.0,47356.0,0.68781748]
[1641090379224,0.09085316,47357.0,47356.0,0.92698588]
[1641090379625,0.09085316,47357.0,47356.0,1.09898588]
[1641090380024,0.09085316,47357.0,47356.0,1.00897613]
[1641090380725,0.09085316,47357.0,47356.0,0.92698588]
[1641090381627,0.09085316,47357.0,47356.0,1.10298588]
[1641090382127,0.09085316,47357.0,47356.0,1.01297613]
[1641090382829,0.09085316,47357.0,47356.0,0.356]
[1641090383027,0.14033567,47358.0,47356.0,0.09000975]
[1641090383528,0.14033567,47358.0,47356.0,0.27800975]
[1641090383928,0.14033567,47358.0,47356.0,1.59325795]
[1641090384828,0.14033567,47358.0,47356.0,1.40525795]
[1641090385229,0.14033567,47358.0,47356.0,1.3152482]
[1641090385431,0.14033567,47358.0,47350.0,0.02111718]
[1641090385432,0.14033567,47358.0,47355.0,1.3152482]
[1641090385630,0.23435567,47358.0,47356.0,0.174]
[1641090386634,0.23435567,47358.0,47357.0,0.84004939]
[1641090387541,0.23435567,47358.0,47357.0,1.01604939]
[1641090388436,0.23435567,47358.0,47357.0,0.176]
[1641090388839,0.23435567,47358.0,47355.0,1.20007056]
[1641090389235,0.23435567,47358.0,47357.0,0.84005743]
[1641090390343,0.23435567,47358.0,47356.0,0.84005743]
[1641090390739,0.14033567,47358.0,47356.0,0.84005743]
[1641090390939,0.14033567,47358.0,47357.0,0.84005743]
[1641090391538,0.14033567,47358.0,47357.0,1.01305743]
[1641090392539,0.14033567,47358.0,47357.0,0.173]
[1641090392939,0.14033567,47358.0,47356.0,1.20007056]
[1641090393740,0.14033567,47358.0,47356.0,1.39007056]
[1641090393942,1.32461268,47358.0,47356.0,1.39007056]
[1641090394943,1.32461268,47358.0,47356.0,1.20007056]
[1641090395643,1.32461268,47358.0,47356.0,1.39007056]
[1641090396959,1.32461268,47358.0,47356.0,2.03966519]
[1641090397156,0.59166788,47357.0,47356.0,0.83959463]
[1641090397556,0.59166788,47357.0,47356.0,1.03059463]
[1641090397757,0.73200355,47358.0,47356.0,0.191]
[1641090398157,0.73200355,47358.0,47356.0,0.28100422]
[1641090398758,0.73200355,47358.0,47357.0,0.09000422]
[1641090399661,0.73200355,47358.0,47357.0,0.191]
[1641090400862,0.73200355,47358.0,47355.0,0.09000422]
[1641090401062,0.23068852,47358.0,47354.0,1.20007056]
[1641090401263,1.05902356,47358.0,47354.0,1.20007056]
[1641090401463,1.05902356,47358.0,47357.0,0.5997186]
[1641090402165,1.05902356,47358.0,47354.0,1.39007056]
[1641090402372,0.23068852,47358.0,47354.0,1.39007056]
[1641090402764,0.23068852,47358.0,47354.0,1.20007056]
[1641090402964,0.14033567,47358.0,47355.0,0.09000422]
[1641090403164,0.35525684,47356.0,47355.0,1.29007478]
[1641090403563,0.35525684,47356.0,47355.0,1.48007478]
[1641090403765,0.35525684,47356.0,47355.0,1.39007056]
[1641090404768,0.35525684,47356.0,47355.0,1.48007478]
[1641090404964,0.35525684,47356.0,47355.0,1.29007478]
[1641090405564,0.35525684,47356.0,47355.0,1.48407478]
[1641090405965,0.35525684,47356.0,47355.0,1.39407056]
[1641090406965,0.35525684,47356.0,47355.0,1.20007056]
[1641090407269,0.35525684,47356.0,47355.0,1.29007478]
[1641090407667,0.35525684,47356.0,47355.0,1.48407478]
[1641090408065,0.73243041,47358.0,47355.0,1.48407478]
[1641090408266,0.59209474,47357.0,47355.0,0.194]
[1641090408867,0.59209474,47357.0,47356.0,0.09000422]
[1641090409667,0.59209474,47357.0,47356.0,0.27500422]
[1641090410170,0.59209474,47357.0,47356.0,0.185]
[1641090410568,0.59209474,47357.0,47356.0,0.27500422]
[1641090410969,0.59209474,47357.0,47356.0,0.09000422]
[1641090411169,0.02112343,47357.0,47354.0,1.20007056]
[1641090411369,0.18,47355.0,47354.0,1.20007056]
[1641090411770,0.18,47355.0,47354.0,1.79984084]
[1641090411970,0.32033567,47355.0,47354.0,0.59977028]
[1641090412971,0.41034938,47355.0,47351.0,1.20007056]
[1641090413173,0.41034938,47355.0,47349.0,0.59977028]
[1641090413571,0.18,47351.0,47349.0,0.59977028]
[1641090413772,0.02112596,47350.0,47349.0,0.59977028]
[1641090413971,0.16146163,47350.0,47349.0,0.59977028]
[1641090414171,0.98861562,47350.0,47348.0,0.72871306]
[1641090414371,0.18,47349.0,47348.0,0.72871306]
[1641090414582,0.18,47349.0,47347.0,0.83978376]
[1641090414781,0.18,47349.0,47341.0,1.3152482]
[1641090414975,0.0211275,47345.0,47341.0,1.3152482]
[1641090415283,0.18,47342.0,47339.0,0.83993724]
[1641090415575,0.18,47342.0,47341.0,0.70495517]
[1641090415975,0.32033567,47342.0,47341.0,0.70495517]
[1641090416175,3.04387999,47342.0,47341.0,0.105]
[1641090416475,3.04387999,47342.0,47329.0,1.3152482]
[1641090416675,3.06501066,47342.0,47329.0,1.3152482]
[1641090417076,3.06501066,47342.0,47330.0,1.056289]
[1641090417478,0.18,47337.0,47330.0,1.056289]
[1641090417776,0.18,47337.0,47330.0,0.168]
[1641090417979,0.28067134,47331.0,47330.0,0.168]
[1641090418176,0.36690134,47331.0,47330.0,0.168]
[1641090419677,0.63904426,47331.0,47323.0,0.02]
[1641090419878,0.14033567,47325.0,47323.0,0.02]
[1641090420078,0.14033567,47325.0,47324.0,0.01200481]
[1641090421579,0.14033567,47325.0,47324.0,0.16000481]
[1641090421580,0.32833567,47325.0,47324.0,0.16000481]
[1641090422879,0.14033567,47325.0,47324.0,0.01200481]
[1641090423580,0.32533567,47325.0,47324.0,0.109]
[1641090424982,0.14033567,47325.0,47323.0,0.02]
[1641090425581,0.32333567,47325.0,47323.0,0.13]
[1641090426083,0.32333567,47325.0,47324.0,0.18]
[1641090426282,2.32219335,47342.0,47324.0,0.27459894]
[1641090426483,1.89972894,47342.0,47330.0,0.18]
[1641090426684,1.50866721,47348.0,47330.0,0.18]
[1641090426884,0.18,47342.0,47330.0,0.18]
[1641090427085,0.18,47342.0,47327.0,0.02112772]
[1641090427284,0.18,47342.0,47330.0,0.18]
[1641090427685,0.02112772,47345.0,47330.0,0.18]
[1641090427884,0.14033567,47337.0,47327.0,0.33033567]
[1641090428084,0.32033567,47337.0,47327.0,0.33033567]
[1641090428285,0.14033567,47337.0,47327.0,0.33033567]
[1641090428985,0.14033567,47337.0,47327.0,0.14033567]
[1641090429585,0.14033567,47337.0,47327.0,0.32733567]
[1641090430486,0.14033567,47337.0,47328.0,0.01200371]
[1641090431585,0.14033567,47337.0,47328.0,0.20000371]
[1641090431991,0.14033567,47337.0,47329.0,0.01200371]
[1641090433588,0.14033567,47337.0,47329.0,0.197]
[1641090433789,0.32033567,47337.0,47329.0,0.197]
[1641090434092,0.14033567,47337.0,47329.0,0.197]
[1641090434290,0.34146683,47337.0,47329.0,0.197]
[1641090434490,0.16146683,47337.0,47329.0,0.197]
[1641090434892,0.16146683,47337.0,47327.0,0.14033567]
[1641090434893,0.14033567,47337.0,47327.0,0.14033567]
[1641090435091,0.14033567,47337.0,47327.0,0.32033567]
[1641090435491,0.14033567,47337.0,47328.0,0.0120037]
[1641090436294,0.14033567,47337.0,47327.0,0.33233567]
[1641090437011,0.14033567,47337.0,47327.0,0.14033567]
[1641090437395,0.14033567,47337.0,47327.0,0.32033567]
[1641090437595,0.14033567,47337.0,47327.0,0.33633567]
[1641090438198,0.14033567,47337.0,47328.0,0.01200345]
[1641090439597,0.14033567,47337.0,47328.0,0.20800345]
[1641090439797,0.14033567,47337.0,47328.0,0.196]
[1641090440399,0.14033567,47337.0,47330.0,0.8]
[1641090441599,0.14033567,47337.0,47330.0,0.996]
[1641090442206,0.35283229,47332.0,47331.0,0.09553909]
[1641090443605,0.35283229,47332.0,47331.0,0.29053909]
[1641090444915,0.35283229,47332.0,47331.0,0.09553909]
[1641090445818,0.35283229,47332.0,47331.0,0.29253909]
[1641090446916,0.35283229,47332.0,47331.0,0.27553909]
[1641090447718,0.35283229,47334.0,47331.0,0.47153909]
[1641090447918,0.35283229,47334.0,47333.0,0.18]
[1641090449723,0.35283229,47334.0,47333.0,0.195]
[1641090450325,0.58688895,47336.0,47333.0,0.29053909]
[1641090450520,0.14033567,47337.0,47333.0,0.29053909]
[1641090451322,0.49316796,47337.0,47334.0,0.09553909]
[1641090451921,0.49316796,47337.0,47336.0,0.83984722]
[1641090453622,0.49316796,47337.0,47336.0,1.03384722]
[1641090455126,0.49316796,47337.0,47336.0,1.12938631]
[1641090455324,0.49316796,47337.0,47336.0,0.93538631]
[1641090455725,0.49316796,47337.0,47336.0,1.12838631]
[1641090457030,0.49316796,47337.0,47336.0,0.93538631]
[1641090457328,0.49316796,47337.0,47336.0,0.09553909]
[1641090457728,0.49316796,47337.0,47336.0,0.28953909]
[1641090458128,0.49316796,47337.0,47336.0,1.03384472]
[1641090458630,0.49316796,47337.0,47336.0,0.194]
[1641090459129,0.49316796,47337.0,47334.0,1.19977817]
[1641090459532,0.49316796,47337.0,47336.0,0.09553909]
[1641090460635,0.49316796,47337.0,47335.0,0.09553909]
[1641090461735,0.14033567,47337.0,47336.0,0.83974075]
[1641090463336,0.14033567,47337.0,47336.0,0.93527984]
[1641090463736,0.14033567,47337.0,47336.0,1.12927984]
[1641090464337,0.14033567,47337.0,47336.0,1.03374075]
[1641090464939,0.14033567,47337.0,47336.0,0.93527984]
[1641090465640,0.14033567,47337.0,47336.0,0.83974075]
[1641090465837,0.14033567,47337.0,47336.0,1.03374075]
[1641090466937,0.14033567,47337.0,47336.0,0.83974075]
[1641090467139,0.14033567,47337.0,47336.0,0.93527984]
[1641090467541,0.35283229,47338.0,47336.0,0.93527984]
[1641090467839,0.35283229,47338.0,47336.0,1.12727984]
[1641090468040,0.35283229,47339.0,47336.0,0.192]
[1641090468843,0.35283229,47339.0,47338.0,0.59980739]
[1641090469243,0.58688895,47340.0,47338.0,0.59980739]
[1641090469743,0.58688895,47340.0,47338.0,0.78880739]
[1641090469943,0.58688895,47340.0,47338.0,0.88434648]
[1641090470946,0.35378718,47339.0,47338.0,0.78880739]
[1641090471146,0.35378718,47339.0,47338.0,0.59980739]
[1641090471449,0.58688895,47340.0,47338.0,0.59980739]
[1641090471646,0.58688895,47340.0,47338.0,0.70178351]
[1641090471846,0.58688895,47340.0,47338.0,0.89078351]
[1641090472146,0.58688895,47340.0,47338.0,0.78880739]
[1641090472147,0.35423414,47339.0,47338.0,0.78880739]
[1641090473147,0.58688895,47340.0,47336.0,0.83973034]
[1641090473351,0.58688895,47340.0,47338.0,0.10197612]
[1641090473549,0.58688895,47339.0,47338.0,0.10197612]
[1641090473948,0.58688895,47339.0,47338.0,0.83973034]
[1641090474151,0.58688895,47340.0,47338.0,0.83973034]
[1641090474850,0.58688895,47340.0,47336.0,1.38977817]
[1641090475050,0.35434419,47339.0,47336.0,1.30175429]
[1641090475251,0.35434419,47339.0,47337.0,1.19977817]
[1641090475752,0.35434419,47339.0,47337.0,1.39577817]
[1641090475953,0.58688895,47341.0,47337.0,0.196]
[1641090476151,0.58688895,47341.0,47337.0,1.51575599]
[1641090476152,0.58688895,47339.0,47337.0,1.51575599]
[1641090476851,0.58688895,47339.0,47338.0,0.10197612]
[1641090477752,0.58688895,47339.0,47338.0,0.29897612]
[1641090478556,0.58688895,47340.0,47338.0,0.197]
[1641090479052,0.58688895,47340.0,47337.0,1.31975599]
[1641090479354,0.91180759,47341.0,47337.0,1.31975599]
[1641090479554,0.82177193,47340.0,47339.0,0.10197612]
[1641090480354,1.26435138,47341.0,47339.0,1.30238215]
[1641090481158,1.26435138,47341.0,47340.0,0.10197612]
[1641090481757,1.26435138,47341.0,47340.0,0.29497612]
[1641090483260,1.26435138,47341.0,47340.0,0.10197612]
[1641090483862,1.26435138,47341.0,47340.0,0.29497612]
[1641090485063,1.26435138,47341.0,47340.0,0.10197612]
[1641090485463,0.09003566,47341.0,47340.0,0.9422808]
[1641090485776,0.09003566,47341.0,47340.0,1.1242808]
[1641090486380,0.09003566,47341.0,47340.0,0.28397612]
[1641090486577,0.09003566,47341.0,47340.0,0.88421553]
[1641090487179,0.09003566,47341.0,47340.0,0.70221553]
[1641090487880,0.11116523,47341.0,47340.0,0.88021553]
[1641090488079,0.11116523,47341.0,47340.0,0.77823941]
[1641090488279,0.11116523,47341.0,47340.0,0.178]
[1641090489179,0.11116523,47341.0,47338.0,0.60023941]
[1641090489383,0.18,47339.0,47338.0,0.60023941]
[1641090489779,0.18,47339.0,47338.0,0.78123941]
[1641090490181,0.27003566,47339.0,47338.0,0.78123941]
[1641090490482,0.27003566,47339.0,47338.0,0.66943941]
[1641090490982,1.56680194,47339.0,47338.0,0.181]
[1641090491182,1.56680194,47339.0,47337.0,0.48843941]
[1641090491583,0.02113188,47338.0,47336.0,0.84030468]
[1641090491781,0.02113188,47338.0,47337.0,0.162]
[1641090491983,0.20113188,47338.0,47337.0,0.162]
[1641090492181,0.20113188,47338.0,47334.0,0.84030468]
[1641090492382,0.18,47335.0,47334.0,0.84030468]
[1641090493583,0.27003566,47335.0,47333.0,0.84030468]
[1641090493783,0.18,47334.0,47333.0,0.84030468]
[1641090494186,0.27003566,47334.0,47333.0,0.84030468]
[1641090494385,0.09003566,47334.0,47333.0,0.84030468]
[1641090495784,0.27903566,47334.0,47333.0,0.84030468]
[1641090497286,0.18,47335.0,47333.0,0.84030468]
[1641090497487,0.18,47335.0,47327.0,0.84030468]
[1641090497687,0.18,47330.0,47327.0,0.84030468]
[1641090497988,0.18,47330.0,47328.0,0.09005344]
[1641090498787,0.18,47330.0,47326.0,0.84030468]
[1641090499590,0.18,47330.0,47327.0,0.09005344]
[1641090499787,0.373,47330.0,47327.0,0.09005344]
[1641090500188,0.373,47330.0,47326.0,0.84030468]
[1641090500989,0.373,47330.0,47327.0,0.09005344]
[1641090501190,0.18,47330.0,47327.0,0.09005344]
[1641090501488,0.35332318,47333.0,47328.0,0.59966674]
[1641090501688,0.18,47330.0,47328.0,0.59966674]
[1641090501891,0.373,47330.0,47328.0,0.59966674]
[1641090503289,0.18,47330.0,47328.0,0.59966674]
[1641090503795,0.373,47330.0,47328.0,0.59966674]
[1641090505096,0.18,47330.0,47328.0,0.59966674]
[1641090505893,0.373,47330.0,47328.0,0.59966674]
[1641090507095,0.373,47330.0,47327.0,0.59966674]
[1641090507695,0.18,47330.0,47327.0,0.59966674]
[1641090507896,0.373,47330.0,47327.0,0.68972018]
[1641090508498,0.51333567,47330.0,47327.0,0.68972018]
[1641090508697,0.51333567,47330.0,47327.0,0.59966674]
[1641090509099,0.32033567,47330.0,47327.0,0.59966674]
[1641090509300,0.32033567,47330.0,47327.0,0.68972018]
[1641090509899,0.51433567,47330.0,47327.0,0.68972018]
[1641090511299,0.32033567,47330.0,47327.0,0.68972018]
[1641090511899,0.51333567,47330.0,47326.0,0.68972018]
[1641090512500,0.51333567,47330.0,47325.0,0.68972018]
[1641090513201,0.51333567,47330.0,47326.0,0.59966674]
[1641090513202,0.32033567,47330.0,47326.0,0.59966674]
[1641090513802,0.51433567,47330.0,47326.0,0.59966674]
[1641090515104,0.32033567,47330.0,47326.0,0.59966674]
[1641090515804,0.51533567,47330.0,47326.0,0.59966674]
[1641090516404,0.51533567,47330.0,47326.0,0.68972018]
[1641090517214,0.32033567,47330.0,47326.0,0.68972018]
[1641090518012,0.51433567,47330.0,47326.0,0.68972018]
[1641090518212,0.59062413,47328.0,47327.0,1.20040603]
[1641090519116,0.59062413,47328.0,47326.0,1.20040603]
[1641090519817,0.77662413,47328.0,47326.0,1.33240603]
[1641090520015,0.77662413,47328.0,47327.0,0.09005344]
[1641090521219,0.59062413,47328.0,47327.0,0.09005344]
[1641090521817,0.77562413,47328.0,47327.0,0.21205344]
[1641090522118,0.77562413,47328.0,47327.0,0.122]
[1641090522718,0.77562413,47328.0,47327.0,0.21205344]
[1641090523120,0.59062413,47328.0,47327.0,0.09005344]
[1641090523821,0.77462413,47328.0,47327.0,0.14505344]
[1641090524121,0.27406105,47328.0,47327.0,0.055]
[1641090524721,0.27406105,47328.0,47327.0,0.14505344]
[1641090525423,1.09848039,47328.0,47327.0,0.14505344]
[1641090525822,1.09848039,47328.0,47327.0,0.15005344]
[1641090527133,0.91448039,47328.0,47327.0,0.09005344]
[1641090527835,1.10548039,47328.0,47327.0,0.09005344]
[1641090528135,1.01541934,47328.0,47325.0,1.20040603]
[1641090528635,0.5886531,47327.0,47325.0,1.20040603]
[1641090529837,0.7726531,47327.0,47325.0,1.22540603]
[1641090530443,1.59707244,47327.0,47325.0,1.22540603]
[1641090530641,0.5886531,47326.0,47325.0,1.22540603]
[1641090531240,0.91448147,47326.0,47325.0,0.09005344]
[1641090531642,0.09006213,47326.0,47325.0,0.09005344]
[1641090531841,0.28306213,47326.0,47324.0,1.29045947]
[1641090532041,0.28306213,47326.0,47324.0,0.09005344]
[1641090532842,0.02113667,47325.0,47324.0,0.09005344]
[1641090533048,0.93492734,47325.0,47324.0,0.09005344]
[1641090533643,0.84486521,47325.0,47323.0,0.02]
[1641090533843,0.21413667,47325.0,47323.0,0.02]
[1641090534043,0.78090441,47325.0,47323.0,0.02]
[1641090535044,0.35273634,47324.0,47323.0,0.02]
[1641090535943,0.193,47324.0,47323.0,0.11006596]
[1641090536543,0.193,47324.0,47323.0,0.02]
[1641090537142,0.35273634,47325.0,47323.0,0.02]
[1641090537343,0.35273634,47325.0,47323.0,0.11006596]
[1641090537843,0.54373634,47325.0,47323.0,0.11006596]
[1641090538044,0.54373634,47325.0,47324.0,0.09006596]
[1641090539645,0.191,47325.0,47323.0,0.02]
[1641090540747,0.54333944,47325.0,47323.0,0.02]
[1641090541346,0.35233944,47325.0,47323.0,0.02]
[1641090541748,0.18,47324.0,47323.0,0.02]
[1641090541948,0.54333944,47325.0,47323.0,0.02]
[1641090542348,0.41233944,47324.0,47323.0,0.1100669]
[1641090542549,0.53233944,47324.0,47323.0,0.1100669]
[1641090543752,0.18,47324.0,47323.0,0.02]
[1641090543949,0.373,47324.0,47323.0,0.02]
[1641090544148,0.193,47324.0,47323.0,0.02]
[1641090544349,0.373,47324.0,47323.0,0.02]
[1641090545251,0.76790441,47324.0,47323.0,0.02]
[1641090545951,0.96090441,47324.0,47323.0,0.02]
[1641090546857,0.78090441,47324.0,47323.0,0.02]
[1641090547255,0.58790441,47324.0,47323.0,0.02]
[1641090548154,0.78090441,47324.0,47323.0,0.02]
[1641090549256,0.58790441,47324.0,47323.0,0.02]
[1641090550056,0.78190441,47324.0,47323.0,0.02]
[1641090551259,0.58790441,47324.0,47323.0,0.02]
[1641090551960,0.78190441,47324.0,47323.0,0.02]
[1641090553161,0.194,47324.0,47323.0,0.02]
[1641090553361,0.0900714,47324.0,47323.0,0.02]
[1641090553961,0.2840714,47324.0,47323.0,0.02]
[1641090555460,0.0900714,47324.0,47323.0,0.02]
[1641090555661,0.91379994,47324.0,47323.0,0.02]
[1641090556059,1.10579994,47324.0,47323.0,0.02]
[1641090557361,0.91379994,47324.0,47323.0,0.02]
[1641090557962,1.10579994,47324.0,47323.0,0.02]
[1641090558165,0.192,47324.0,47323.0,0.02]
[1641090558762,1.10435365,47324.0,47323.0,0.02]
[1641090559366,0.91235365,47324.0,47323.0,0.02]